[Event "GER-chT Youth Countries 2018"]
[Site "Wurzburg"]
[Date "2018.10.05"]
[Round "5"]
[White "Koehler, Lukas"]
[Black "Lutz, Ruben"]
[Result "1-0"]
[ECO "C01"]
[WhiteElo "1926"]
[BlackElo "2043"]
[Annotator "NA RC"]
[PlyCount "77"]
[EventDate "2018.10.03"]
[EventType "team-tourn"]
[EventCountry "GER"]
[SourceTitle "playchess.com"]
[Source "ChessBase"]
[SourceQuality "1"]
[TimeControl "40/5400+30:1800+30"]

1. e4 {[%emt 0:00:00]} e6 {[%emt 0:00:00]} 2. d4 {[%emt 0:00:00]} d5 {[%emt 0:00:17]} 3. exd5 {[%emt 0:00:00]} exd5 {[%emt 0:00:00]} 4. Bd3 {[%emt 0:00:00]} Bd6 {[%emt 0:01:59]} 5. Qf3 {[%emt 0:00:26]} Nc6 {[%emt 0:02:01]} 6. c3 {[%emt 0:00:03]} Nf6 {[%emt 0:00:35]} 7. h3 {[%emt 0:00:07]} h6 {[%emt 0:00:09]} 8. Bf4 {[%emt 0:06:19]} O-O {[%emt 0:01:17]} 9. Ne2 {[%emt 0:01:23]} Re8 {[%emt 0:01:12]} 10. Nd2 {[%emt 0:03:56]} Bxf4 {[%emt 0:06:10]} 11. Qxf4 {[%emt 0:00:02]} Qe7 {[%emt 0:00:38]} 12. g4 {[%emt 0:10:03]} Ne4 {[%emt 0:03:37]} 13. Bxe4 {[%emt 0:06:28]} dxe4 {[%emt 0:00:14]} 14. Nf1 {[%emt 0:01:26]} Qd6 {[%emt 0:10:20]} 15. Ne3 $14 {[%emt 0:02:58]} Bd7 {[%emt 0:04:13]} 16. O-O-O {[%emt 0:09:04]} b5 {[%emt 0:13:41]} 17. h4 {[%emt 0:05:49]} Ne7 {[%emt 0:23:25]} 18. h5 {[%emt 0:03:03]} Rad8 {[%emt 0:04:59]} 19. Rhg1 {[%emt 0:04:08]} Qxf4 {[%emt 0:10:13]} 20. Nxf4 {[%emt 0:01:12]} f6 {[%emt 0:01:20]} 21. d5 {[%emt 0:05:20]} Nc8 {[%emt 0:01:41]} 22. b3 {[%emt 0:05:46]} Nb6 {[%emt 0:06:29]} 23. Rd2 {[%emt 0:05:53]} Bc8 {[%emt 0:01:28]} 24. Rgd1 {[%emt 0:02:09]} Rd6 {[%emt 0:01:01]} 25. Kb2 {[%emt 0:07:40]} Red8 {[%emt 0:01:44]} 26. Rd4 {[%emt 0:01:07]} Re8 {[%emt 0:00:59]} 27. Rc1 {[%emt 0:05:33]} c6 {[%emt 0:00:51]} 28. dxc6 {[%emt 0:03:34]} Rxc6 {[%emt 0:00:03]} 29. Rcd1 {[%emt 0:01:25]} Bb7 {[%emt 0:02:06]} 30. Nf5 {[%emt 0:01:04]} Ba8 {[%emt 0:00:59]} 31. Ng6 {[%emt 0:01:28]} Rce6 {[%emt 0:00:32]} 32. Rd7 {[%emt 0:02:09]} Nxd7 {[%emt 0:00:44]} 33. Rxd7 {[%emt 0:00:07]} R6e7 {[%emt 0:00:31]} 34. Rxe7 {[%emt 0:02:50]} Rxe7 {[%emt 0:00:05]} 35. Nfxe7+ {[%emt 0:00:20]} Kf7 {[%emt 0:00:09]} 36. Kc2 {[%emt 0:00:20]} Bb7 {[%emt 0:00:37]} 37. Kd2 {[%emt 0:00:10]} Ke6 {[%emt 0:00:27]} 38. Ke3 {[%emt 0:00:09]} a6 {[%emt 0:00:46]} 39. Nf5 {[%emt 0:00:59]} 1-0

[Event "GER-chT Youth Countries 2018"]
[Site "Wurzburg"]
[Date "2018.10.05"]
[Round "5"]
[White "Hommel, Niclas"]
[Black "Jakob, Georg"]
[Result "0-1"]
[ECO "B39"]
[WhiteElo "1915"]
[BlackElo "1960"]
[Annotator "NA RC"]
[PlyCount "56"]
[EventDate "2018.10.03"]
[EventType "team-tourn"]
[EventCountry "GER"]
[SourceTitle "playchess.com"]
[Source "ChessBase"]
[SourceQuality "1"]
[TimeControl "40/5400+30:1800+30"]

1. e4 {[%emt 0:00:00]} c5 {[%emt 0:00:00]} 2. Nf3 {[%emt 0:00:00]} g6 {[%emt 0:00:00]} 3. d4 {[%emt 0:00:00]} cxd4 {[%emt 0:00:00]} 4. Nxd4 {[%emt 0:00:00]} Bg7 {[%emt 0:00:01]} 5. c4 {[%emt 0:00:08]} Nc6 {[%emt 0:00:05]} 6. Be3 {[%emt 0:00:04]} Nf6 {[%emt 0:00:07]} 7. Nc3 {[%emt 0:00:03]} Ng4 {[%emt 0:00:08]} 8. Qxg4 {[%emt 0:00:10]} Nxd4 {[%emt 0:00:05]} 9. Qd1 {[%emt 0:00:07]} e5 {[%emt 0:00:19]} 10. Bd3 {[%emt 0:02:26]} O-O {[%emt 0:00:27]} 11. O-O {[%emt 0:00:19]} d6 {[%emt 0:00:23]} 12. Qd2 {[%emt 0:05:42]} Be6 {[%emt 0:01:10]} 13. Rfd1 {[%emt 0:01:02]} Rc8 {[%emt 0:01:24]} 14. b3 {[%emt 0:00:43]} a6 {[%emt 0:03:09]} 15. Rac1 {[%emt 0:04:17]} Qa5 {[%emt 0:07:11]} 16. Bf1 {[%emt 0:13:12]} f5 {[%emt 0:29:05]} 17. f3 {[%emt 0:03:58]} fxe4 {[%emt 0:03:10]} 18. fxe4 {[%emt 0:00:34]} b5 {[%emt 0:05:45]} 19. Ne2 Qxd2 20. Rxd2 bxc4 21. Nxd4 exd4 22. Bxd4 Bh6 23. Rcc2 Bxd2 24. Rxd2 cxb3 25. axb3 Rc1 26. Rf2 Bxb3 27. Rxf8+ Kxf8 28. Kf2 Bc4 0-1

[Event "GER-chT Youth Countries 2018"]
[Site "Wurzburg"]
[Date "2018.10.05"]
[Round "5"]
[White "Arakelian, Aik"]
[Black "Riegel, Arinna"]
[Result "0-1"]
[ECO "B28"]
[WhiteElo "1879"]
[BlackElo "1881"]
[Annotator "NA"]
[PlyCount "58"]
[EventDate "2018.10.03"]
[EventType "team-tourn"]
[EventCountry "GER"]
[SourceTitle "playchess.com"]
[Source "ChessBase"]
[SourceQuality "1"]
[TimeControl "40/5400+30:1800+30"]

1. e4 {[%emt 0:00:00]} c5 {[%emt 0:00:00]} 2. Nf3 {[%emt 0:00:09]} a6 {[%emt 0:00:05]} 3. d4 {[%emt 0:00:19]} cxd4 {[%emt 0:00:05]} 4. Nxd4 {[%emt 0:00:05]} Nf6 {[%emt 0:00:20]} 5. Nc3 {[%emt 0:00:06] B28: Sicilian: 2 Nf3 a6 (O'Kelly Variation)} Qc7 {[%emt 0:00:11]} (5... e6 6. Be2 Be7 7. O-O d6 8. f4 O-O 9. Be3 Qc7 10. Bf3 Nc6 11. Nxc6 bxc6 12. Na4 Bb7 13. c4 c5 14. Qc2 Nd7 15. Nc3 Nb8 16. Kh1 Nc6 17. Qf2 Rac8 18. b3 Bf6 19. e5 dxe5 20. Ne4 Be7 21. Bxc5 exf4 {½-½ (39) Danin,A (2587)-Navara,D (2737) Czech Republic 2017}) 6. Qf3 {[%emt 0:00:40]} e6 {[%emt 0:00:38]} 7. g4 {[%emt 0:00:39]} h6 $146 {[%emt 0:01:34]} ({Predecessor:} 7... d6 8. Bg2 Nfd7 9. b3 Nc6 10. Nxc6 bxc6 11. Bb2 Be7 12. O-O-O O-O 13. h4 a5 {0-1 (35) Mosquera,M (2395)-Aroshidze,L (2580) Barbera del Valles 2012}) 8. Be2 {[%emt 0:09:22]} Nc6 {[%emt 0:01:16]} 9. Nxc6 {[%emt 0:01:28]} bxc6 {[%emt 0:01:07]} 10. g5 {[%emt 0:03:55]} hxg5 {[%emt 0:01:04]} 11. Bxg5 {[%emt 0:00:06]} Be7 {[%emt 0:00:05]} 12. h4 {[%emt 0:00:09]} d5 {[%emt 0:01:16]} 13. O-O-O {[%emt 0:02:35]} Rb8 {[%emt 0:08:41]} 14. exd5 {[%emt 0:05:34]} cxd5 {[%emt 0:00:30]} 15. Bf4 {[%emt 0:02:15]} Bd6 {[%emt 0:00:48]} 16. Bxd6 {[%emt 0:00:31]} Qxd6 {[%emt 0:00:01]} 17. Ne4 {[%emt 0:01:55]} Nxe4 {[%emt 0:01:59]} 18. Qxe4 {[%emt 0:00:48]} Rb4 {[%emt 0:13:02]} 19. c4 {[%emt 0:18:17]} Rxb2 {[%emt 0:09:14]} 20. Qe3 {[%emt 0:08:39]} Rxa2 {[%emt 0:02:53]} 21. Rxd5 {[%emt 0:12:14]} Qb4 {[%emt 0:06:08]} 22. Qe5 {[%emt 0:02:26]} Qa3+ {[%emt 0:01:27]} 23. Kd1 {[%emt 0:00:43]} Ra1+ {[%emt 0:00:32]} 24. Kd2 {[%emt 0:00:08]} Rxh1 {[%emt 0:01:13]} 25. Qxg7 {[%emt 0:00:53]} Qa1 {[%emt 0:02:32]} 26. Rd4 {[%emt 0:00:33]} Qa5+ {[%emt 0:03:03]} 27. Ke3 {[%emt 0:01:03]} R1xh4 {[%emt 0:09:21]} 28. Bg4 {[%emt 0:03:54]} Qe1+ {[%emt 0:20:18]} 29. Be2 {[%emt 0:02:34]} Qc3+ {[%emt 0:01:37]} 0-1

[Event "GER-chT Youth Countries 2018"]
[Site "Wurzburg"]
[Date "2018.10.05"]
[Round "5"]
[White "Klenk, Sofie"]
[Black "Bui, Ngoc Han Julia"]
[Result "0-1"]
[ECO "B90"]
[WhiteElo "1873"]
[BlackElo "1876"]
[Annotator "NA RC"]
[PlyCount "78"]
[EventDate "2018.10.03"]
[EventType "team-tourn"]
[EventCountry "GER"]
[SourceTitle "playchess.com"]
[Source "ChessBase"]
[SourceQuality "1"]
[TimeControl "40/5400+30:1800+30"]

1. e4 {[%emt 0:00:00]} c5 {[%emt 0:00:00]} 2. Nf3 {[%emt 0:00:00]} d6 {[%emt 0:00:00]} 3. d4 {[%emt 0:00:00]} cxd4 {[%emt 0:00:00]} 4. Nxd4 {[%emt 0:00:00]} Nf6 {[%emt 0:00:00]} 5. Nc3 {[%emt 0:00:00]} a6 {[%emt 0:00:03]} 6. h3 {[%emt 0:00:00]} e6 {[%emt 0:00:07]} 7. g4 {[%emt 0:00:02]} b5 {[%emt 0:00:49]} 8. Bg2 {[%emt 0:05:31]} Bb7 {[%emt 0:00:20]} 9. g5 {[%emt 0:04:42]} b4 {[%emt 0:10:23]} 10. gxf6 {[%emt 0:04:02]} bxc3 {[%emt 0:00:12]} 11. fxg7 {[%emt 0:03:53]} Bxg7 {[%emt 0:00:06]} 12. b3 {[%emt 0:02:15]} Qh4 {[%emt 0:04:34]} 13. Qd3 $2 {[%emt 0:11:06] [#]} (13. Be3 $14 {stays ahead.}) 13... Nd7 {[%emt 0:05:26]} ({Black should play} 13... Rg8 $1 $17 14. Rg1 Be5) 14. Ne2 $17 {[%emt 0:06:56]} (14. Rg1 $15) 14... Nc5 {[%emt 0:05:59]} 15. Qg3 {[%emt 0:01:42]} Qxg3 {[%emt 0:07:55]} 16. Nxg3 {[%emt 0:00:55]} Nd3+ {[%emt 0:04:43]} 17. Ke2 {[%emt 0:04:39]} Nxc1+ {[%emt 0:01:07]} 18. Raxc1 {[%emt 0:00:11]} Rg8 {[%emt 0:04:37]} 19. Rcd1 {[%emt 0:03:20]} Be5 {[%emt 0:02:10]} 20. Rhe1 {[%emt 0:07:48]} Ke7 {[%emt 0:09:27]} 21. Bh1 {[%emt 0:03:27]} Rab8 {[%emt 0:07:18]} 22. Nf1 {[%emt 0:03:33]} f5 {[%emt 0:03:49]} 23. f3 {[%emt 0:02:16]} fxe4 {[%emt 0:00:28]} 24. fxe4 {[%emt 0:00:05]} a5 {[%emt 0:07:20]} 25. Bf3 {[%emt 0:05:58]} Rbf8 {[%emt 0:02:15]} 26. Ne3 {[%emt 0:04:37]} Ba6+ {[%emt 0:02:50]} 27. Nc4 {[%emt 0:00:10]} Rg3 {[%emt 0:02:20]} 28. Bg4 {[%emt 0:07:20]} Rf4 {[%emt 0:04:43]} 29. Rd3 {[%emt 0:02:55]} Rxe4+ {[%emt 0:04:10]} 30. Kd1 {[%emt 0:00:02]} Rxe1+ {[%emt 0:01:05]} 31. Kxe1 {[%emt 0:00:03]} Rg1+ {[%emt 0:01:34]} 32. Kf2 {[%emt 0:00:36]} Rc1 {[%emt 0:01:13]} 33. Bd1 {[%emt 0:01:11]} d5 {[%emt 0:01:39]} 34. Nxe5 {[%emt 0:03:35]} Bxd3 {[%emt 0:00:12]} 35. Nxd3 {[%emt 0:00:48]} Rxd1 {[%emt 0:00:15]} 36. b4 {[%emt 0:01:37]} Rd2+ {[%emt 0:00:36]} 37. Ke3 {[%emt 0:00:02]} Rxc2 {[%emt 0:00:53]} 38. bxa5 {[%emt 0:00:04]} Rxa2 {[%emt 0:00:38]} 39. Nb4 {[%emt 0:00:19]} Ra4 {[%emt 0:00:57]} 0-1

[Event "GER-chT Youth Countries 2018"]
[Site "Wurzburg"]
[Date "2018.10.05"]
[Round "5"]
[White "Zeuner, Ole"]
[Black "Wu, Leon"]
[Result "1-0"]
[ECO "B90"]
[WhiteElo "1865"]
[BlackElo "2009"]
[Annotator "NA RC"]
[PlyCount "67"]
[EventDate "2018.10.03"]
[EventType "team-tourn"]
[EventCountry "GER"]
[SourceTitle "playchess.com"]
[Source "ChessBase"]
[SourceQuality "1"]
[TimeControl "40/5400+30:1800+30"]

1. e4 {[%emt 0:00:00]} c5 {[%emt 0:00:00]} 2. Nf3 {[%emt 0:00:00]} d6 {[%emt 0:00:00]} 3. d4 {[%emt 0:00:00]} cxd4 {[%emt 0:00:00]} 4. Nxd4 {[%emt 0:00:00]} Nf6 {[%emt 0:00:00]} 5. Nc3 {[%emt 0:00:00]} a6 {[%emt 0:00:09]} 6. Be3 {[%emt 0:00:00]} e5 {[%emt 0:00:23]} 7. Nb3 {[%emt 0:00:01]} Be6 {[%emt 0:00:24]} 8. h3 {[%emt 0:00:29] B90: Sicilian Najdorf: Unusual White 6th moves, 6 Be3 Ng4 and 6 Be3 e5} (8. f3 Nbd7 9. g4 b5 10. g5 b4 11. Ne2 Ng8 12. f4 h6 13. f5 Bc4 14. g6 fxg6 15. Ng3 Bxf1 16. Rxf1 Ngf6 17. fxg6 Qc7 {1-0 (34) Aronian,L (2767)-So,W (2780) Saint Louis 2018}) 8... Qc7 {[%emt 0:01:20]} 9. g4 {[%emt 0:08:03]} h6 {[%emt 0:06:43]} 10. f4 {[%emt 0:02:35]} exf4 $146 {[%emt 0:01:55]} ({Predecessor:} 10... Be7 11. Qd2 b5 12. Bg2 Nbd7 13. O-O Nb6 14. Na5 exf4 15. Bd4 O-O {0-1 (48) Tosic,N (2153)-Novoselski,Z (2337) Banja Vrujci 2017}) 11. Bxf4 {[%emt 0:00:15]} Nbd7 {[%emt 0:04:37]} 12. Qe2 {[%emt 0:03:28]} Ne5 {[%emt 0:02:27]} 13. O-O-O {[%emt 0:04:30]} O-O-O {[%emt 0:02:21]} 14. Nd5 {[%emt 0:03:13]} Nxd5 {[%emt 0:02:02]} 15. exd5 {[%emt 0:00:35]} Bd7 {[%emt 0:00:51]} 16. Qf2 {[%emt 0:06:25]} Ba4 {[%emt 0:29:41]} 17. Rd4 {[%emt 0:15:31]} Bxb3 {[%emt 0:02:29]} 18. axb3 {[%emt 0:01:46]} Kb8 {[%emt 0:01:09]} 19. Rb4 {[%emt 0:01:06]} Ka8 {[%emt 0:04:35]} 20. Be3 {[%emt 0:02:44]} Qa5 {[%emt 0:05:56]} 21. Ra4 {[%emt 0:00:52]} Qxd5 {[%emt 0:02:00] [#]} 22. Rxa6+ $18 {[%emt 0:03:11]} Kb8 {[%emt 0:01:56]} 23. Bg2 {[%emt 0:06:20]} Qe6 {[%emt 0:03:33]} 24. Bd2 {[%emt 0:14:23]} Kc7 {[%emt 0:17:14]} 25. Ba5+ {[%emt 0:11:08]} Kd7 {[%emt 0:01:10]} 26. Bxb7 {[%emt 0:00:30]} Re8 {[%emt 0:07:37]} 27. Qa7 {[%emt 0:04:22]} Ke7 {[%emt 0:00:30]} 28. Bc8+ {[%emt 0:00:42]} Nd7 {[%emt 0:01:58]} 29. Bxd7 {[%emt 0:00:13]} Ra8 {[%emt 0:00:53]} 30. Qxa8 {[%emt 0:00:51]} Qe3+ {[%emt 0:00:29]} 31. Bd2 {[%emt 0:00:47]} Qf2 {[%emt 0:00:33]} 32. Qe8+ {[%emt 0:00:45]} Kf6 {[%emt 0:00:07]} 33. Bc3+ {[%emt 0:00:24]} Kg5 {[%emt 0:00:27]} 34. h4+ {[%emt 0:00:18]} 1-0

[Event "GER-chT Youth Countries 2018"]
[Site "Wurzburg"]
[Date "2018.10.05"]
[Round "5"]
[White "Farokhi, Keyvan"]
[Black "Hommer, Jeremy"]
[Result "1/2-1/2"]
[ECO "B10"]
[WhiteElo "1855"]
[BlackElo "1983"]
[Annotator "NA"]
[PlyCount "102"]
[EventDate "2018.10.03"]
[EventType "team-tourn"]
[EventCountry "GER"]
[SourceTitle "playchess.com"]
[Source "ChessBase"]
[SourceQuality "1"]
[TimeControl "40/5400+30:1800+30"]

1. e4 {[%emt 0:00:00]} c6 {[%emt 0:00:05]} 2. Nc3 {[%emt 0:00:00]} d5 {[%emt 0:00:07]} 3. Nf3 {[%emt 0:00:14]} dxe4 {[%emt 0:00:07]} 4. Nxe4 {[%emt 0:00:10]} Nf6 {[%emt 0:00:07]} 5. Nxf6+ {[%emt 0:00:18]} exf6 {[%emt 0:00:10]} 6. Bc4 {[%emt 0:00:46]} Bd6 {[%emt 0:01:36]} 7. Qe2+ {[%emt 0:00:20]} Qe7 {[%emt 0:01:20]} 8. Qxe7+ {[%emt 0:00:24] B11: Caro-Kann: Two Knights Variation} Kxe7 {[%emt 0:03:14]} 9. O-O {[%emt 0:01:43]} Rd8 {[%emt 0:00:08]} 10. Re1+ {[%emt 0:03:20]} (10. d4 Bf5 11. c3 Kf8 12. Re1 Nd7 13. Nh4 Bc2 14. Re2 Bd1 15. Re1 Bc2 16. Re2 Bd1 17. Re1 {1-0 (17) Heimann,A (2590)-Li,C (2714) Dresden 2018}) 10... Kf8 {[%emt 0:00:19]} 11. d3 $146 {[%emt 0:01:09]} ({Predecessor:} 11. h3 Bf5 12. c3 Nd7 13. d4 Nb6 14. Bb3 Nd5 15. Nh4 Bd7 {0-1 (59) Baciu,D (2293)-Belenkaya,D (2313) Germany 2017}) 11... Bg4 {[%emt 0:03:04]} 12. Nd2 {[%emt 0:04:23]} Nd7 {[%emt 0:07:20]} 13. h3 Bf5 {[%emt 0:00:58]} 14. Nf3 {[%emt 0:05:15]} h6 {[%emt 0:04:57]} 15. Bd2 {[%emt 0:08:51]} Bh7 {[%emt 0:04:55]} 16. Re2 {[%emt 0:05:06]} b5 {[%emt 0:03:16]} 17. Bb3 {[%emt 0:01:15]} Nc5 {[%emt 0:00:52]} 18. Nd4 {[%emt 0:07:42]} Rdc8 {[%emt 0:03:27]} 19. Be3 {[%emt 0:08:46]} Rab8 {[%emt 0:06:18]} 20. a3 {[%emt 0:06:44]} Nxb3 {[%emt 0:00:51]} 21. Nxb3 {[%emt 0:02:23]} c5 {[%emt 0:01:11]} 22. d4 {[%emt 0:03:31]} cxd4 {[%emt 0:03:18]} 23. Nxd4 {[%emt 0:00:47]} a5 {[%emt 0:00:38]} 24. c3 $11 {[%emt 0:10:58]} b4 {[%emt 0:13:38]} 25. cxb4 {[%emt 0:03:41]} axb4 {[%emt 0:01:05]} 26. a4 {[%emt 0:00:55]} b3 {[%emt 0:05:12]} 27. Nb5 {[%emt 0:04:31]} Bb4 {[%emt 0:02:54]} 28. Bd2 {[%emt 0:00:11]} Bxd2 {[%emt 0:01:49]} 29. Rxd2 {[%emt 0:00:02]} Rc2 {[%emt 0:02:36]} 30. Rad1 {[%emt 0:00:34]} Re8 {[%emt 0:02:34]} 31. Nd4 {[%emt 0:04:35]} Rc4 {[%emt 0:08:35]} 32. Nxb3 {[%emt 0:05:01]} Bc2 {[%emt 0:02:13]} 33. Na5 {[%emt 0:00:11]} Bxd1 {[%emt 0:00:39]} 34. Nxc4 {[%emt 0:00:07]} Bxa4 {[%emt 0:00:07]} 35. f3 {[%emt 0:05:19]} Bb3 {[%emt 0:02:45]} 36. Na5 {[%emt 0:01:54]} Rb8 {[%emt 0:03:48]} 37. Nc6 {[%emt 0:01:37]} Rc8 {[%emt 0:00:26]} 38. Nd4 {[%emt 0:00:28]} Rb8 {[%emt 0:01:18]} 39. Kf2 {[%emt 0:00:32]} g6 {[%emt 0:02:37]} 40. Ke3 {[%emt 0:02:45]} Ba4 {[%emt 0:00:25]} 41. Kd3 {[%emt 0:33:03]} Ke7 {[%emt 0:34:01]} 42. b3 {[%emt 0:00:00]} Bd7 {[%emt 0:00:00]} 43. Rb2 {[%emt 0:00:00]} Kd6 {[%emt 0:00:00]} 44. b4 {[%emt 0:00:00]} f5 {[%emt 0:00:00]} 45. f4 {[%emt 0:00:00]} Bb5+ {[%emt 0:00:00]} 46. Nxb5+ {[%emt 0:00:00]} Rxb5 {[%emt 0:00:00]} 47. Kc4 {[%emt 0:00:00]} Rb6 {[%emt 0:00:00]} 48. b5 {[%emt 0:00:00]} Kc7 {[%emt 0:00:00]} 49. Kc5 {[%emt 0:00:00]} Re6 {[%emt 0:00:00]} 50. b6+ {[%emt 0:00:00]} Kb7 {[%emt 0:00:00]} 51. Rd2 {[%emt 0:00:00]} Rc6+ {[%emt 0:00:00]} 1/2-1/2

[Event "GER-chT Youth Countries 2018"]
[Site "Wurzburg"]
[Date "2018.10.05"]
[Round "5"]
[White "Hetzner, Hannes"]
[Black "Ratay, Meike"]
[Result "0-1"]
[ECO "B95"]
[WhiteElo "1855"]
[BlackElo "1887"]
[Annotator "NA RC"]
[PlyCount "52"]
[EventDate "2018.10.03"]
[EventType "team-tourn"]
[EventCountry "GER"]
[SourceTitle "playchess.com"]
[Source "ChessBase"]
[SourceQuality "1"]
[TimeControl "40/5400+30:1800+30"]

1. e4 {[%emt 0:00:00]} c5 {[%emt 0:00:00]} 2. Nf3 {[%emt 0:00:00]} d6 {[%emt 0:00:00]} 3. d4 {[%emt 0:00:00]} Nf6 {[%emt 0:00:00]} 4. Nc3 {[%emt 0:01:10]} cxd4 {[%emt 0:00:02]} 5. Nxd4 {[%emt 0:00:08]} a6 {[%emt 0:00:04]} 6. Bg5 {[%emt 0:00:17]} e6 {[%emt 0:00:07]} 7. Qe2 {[%emt 0:00:26]} Nbd7 {[%emt 0:06:53]} 8. f4 {[%emt 0:00:29]} Qc7 {[%emt 0:00:16]} 9. O-O-O {[%emt 0:00:35]} b5 {[%emt 0:04:55]} 10. g4 {[%emt 0:05:07]} Bb7 {[%emt 0:06:49]} 11. Bg2 {[%emt 0:04:29]} Nb6 {[%emt 0:04:02]} 12. Rhe1 {[%emt 0:08:53]} Be7 {[%emt 0:05:53] [#]} 13. Kb1 $11 {[%emt 0:13:20]} (13. Bxf6 $1 $16 gxf6 14. a3) 13... b4 {[%emt 0:11:41]} 14. e5 {[%emt 0:03:28]} bxc3 {[%emt 0:02:31]} 15. exf6 {[%emt 0:01:49]} gxf6 {[%emt 0:00:41]} 16. Nxe6 {[%emt 0:10:29]} fxe6 {[%emt 0:01:59]} 17. Bxf6 {[%emt 0:01:47]} Bxf6 {[%emt 0:04:59]} 18. Qxe6+ Be7 {[%emt 0:00:19]} 19. f5 {[%emt 0:06:14]} Bxg2 {[%emt 0:08:43]} 20. f6 {[%emt 0:02:42]} Nc4 {[%emt 0:03:22]} 21. fxe7 {[%emt 0:07:02]} cxb2 {[%emt 0:05:45]} 22. Rd3 {[%emt 0:05:00]} Qa5 {[%emt 0:06:38]} 23. g5 {[%emt 0:06:28]} Ne5 {[%emt 0:03:53]} 24. Red1 {[%emt 0:13:09]} Nxd3 {[%emt 0:02:40]} 25. Rxd3 {[%emt 0:02:27]} Qxg5 {[%emt 0:03:00]} 26. Re3 {[%emt 0:02:37]} Bd5 {[%emt 0:02:21]} 0-1

[Event "GER-chT Youth Countries 2018"]
[Site "Wurzburg"]
[Date "2018.10.05"]
[Round "5"]
[White "Bashylina, Luisa"]
[Black "Grining, Maria"]
[Result "1/2-1/2"]
[ECO "B10"]
[WhiteElo "1837"]
[BlackElo "1572"]
[Annotator "NA"]
[PlyCount "57"]
[EventDate "2018.10.03"]
[EventType "team-tourn"]
[EventCountry "GER"]
[SourceTitle "playchess.com"]
[Source "ChessBase"]
[SourceQuality "1"]
[TimeControl "40/5400+30:1800+30"]

1. e4 {[%emt 0:00:00] Wojtaszek,R} c6 {[%emt 0:00:00]} 2. Nf3 {[%emt 0:00:00]} d5 {[%emt 0:00:00]} 3. exd5 {[%emt 0:00:00]} cxd5 {[%emt 0:00:00]} 4. Ne5 {[%emt 0:00:00] B10: Caro-Kann: 2 d3 and 2 c4} Nc6 {[%emt 0:00:13]} 5. d4 {[%emt 0:00:00]} e6 {[%emt 0:00:44]} 6. c3 {[%emt 0:00:15]} Bd6 {[%emt 0:00:18]} 7. f4 {[%emt 0:00:18]} Nge7 {[%emt 0:03:36]} 8. Bd3 {[%emt 0:01:01]} Nf5 $146 {[%emt 0:21:15]} ({Predecessor:} 8... O-O 9. O-O f6 10. Qh5 Nf5 11. Nxc6 bxc6 {0-1 (32) Sedlak,N (2550)-Wojtaszek,R (2711) Khanty-Mansiysk 2010 CBM 139 [Wojtaszek,R]}) 9. O-O {[%emt 0:03:24]} g6 {[%emt 0:05:14]} 10. Qe2 {[%emt 0:04:29]} O-O {[%emt 0:02:59]} 11. Nd2 {[%emt 0:05:41]} Re8 {[%emt 0:04:04]} 12. Ndf3 {[%emt 0:03:48]} f6 {[%emt 0:08:51]} 13. Nxc6 {[%emt 0:01:28]} bxc6 {[%emt 0:00:15]} 14. Qc2 {[%emt 0:02:10]} Qc7 {[%emt 0:04:36]} 15. g4 {[%emt 0:04:58]} Ng7 {[%emt 0:00:40]} 16. f5 {[%emt 0:13:31]} exf5 {[%emt 0:03:07]} 17. g5 {[%emt 0:04:05]} Nh5 {[%emt 0:05:47]} 18. c4 {[%emt 0:04:29]} c5 {[%emt 0:05:59]} 19. gxf6 {[%emt 0:02:24]} Nxf6 {[%emt 0:00:38]} 20. cxd5 $19 {[%emt 0:02:14]} cxd4 {[%emt 0:02:10]} 21. Nxd4 {[%emt 0:10:37]} Qxc2 {[%emt 0:04:26]} 22. Nxc2 {[%emt 0:00:24]} Bc5+ {[%emt 0:00:46]} 23. Kg2 {[%emt 0:00:42]} Nxd5 {[%emt 0:02:00]} 24. Bc4 {[%emt 0:02:01]} Bb7 {[%emt 0:00:41]} 25. Rd1 {[%emt 0:01:51]} Rad8 {[%emt 0:03:39]} 26. b4 {[%emt 0:09:49]} Bb6 {[%emt 0:03:37]} 27. Bg5 {[%emt 0:01:04]} Rd6 {[%emt 0:01:26]} 28. Bf4 {[%emt 0:01:56]} Rdd8 {[%emt 0:00:16]} 29. a4 {[%emt 0:00:32]} 1/2-1/2

[Event "GER-chT Youth Countries 2018"]
[Site "Wurzburg"]
[Date "2018.10.05"]
[Round "5"]
[White "Reitz, Theresa"]
[Black "Deuer, Marius"]
[Result "1-0"]
[ECO "B24"]
[WhiteElo "1788"]
[BlackElo "1711"]
[Annotator "NA RC"]
[PlyCount "37"]
[EventDate "2018.10.03"]
[EventType "team-tourn"]
[EventCountry "GER"]
[SourceTitle "playchess.com"]
[Source "ChessBase"]
[SourceQuality "1"]
[TimeControl "40/5400+30:1800+30"]

1. e4 {[%emt 0:00:00]} c5 {[%emt 0:00:00]} 2. Nc3 {[%emt 0:00:00]} Nc6 {[%emt 0:00:00]} 3. Bb5 {[%emt 0:00:00]} g6 {[%emt 0:04:07]} 4. Bxc6 {[%emt 0:00:06]} dxc6 {[%emt 0:06:53]} 5. f4 {[%emt 0:02:15]} Bg7 {[%emt 0:04:45]} 6. d3 {[%emt 0:00:53]} e5 {[%emt 0:10:58]} 7. Nf3 {[%emt 0:04:26]} exf4 {[%emt 0:02:52]} 8. Bxf4 {[%emt 0:00:43]} Ne7 {[%emt 0:02:02]} 9. O-O {[%emt 0:02:22]} O-O {[%emt 0:02:23]} 10. Qe1 {[%emt 0:10:35]} f5 {[%emt 0:10:15]} 11. Qh4 {[%emt 0:15:39]} b6 {[%emt 0:10:24]} 12. Rae1 {[%emt 0:15:04]} Qd7 {[%emt 0:05:38]} 13. Bg5 {[%emt 0:07:59]} Re8 {[%emt 0:06:59]} 14. Bxe7 {[%emt 0:13:35]} Rxe7 {[%emt 0:05:58]} 15. exf5 {[%emt 0:00:08]} Rxe1 {[%emt 0:00:06]} 16. Rxe1 {[%emt 0:00:07]} Qxf5 {[%emt 0:02:26]} 17. Re8+ {[%emt 0:05:36]} Bf8 {[%emt 0:01:28]} 18. Ng5 {[%emt 0:02:19]} h6 {[%emt 0:04:19]} 19. Qxh6 {[%emt 0:02:08]} 1-0